[Event "*** Titled Tuesday Blitz"]
[Site "Chess.com"]
[Date "2018.12.04"]
[Round "2"]
[White "bascheyaro"]
[Black "NTDVAN"]
[Result "1-0"]
[WhiteElo "2793"]
[BlackElo "2640"]
[TimeControl "180+2"]
[EndTime "13:19:10 PST"]
[Termination "bascheyaro won by resignation"]

1. d4 {[%clk 0:03:01.9]} 1... d5 {[%clk 0:02:59.9]} 2. c4 {[%clk 0:03:02.9]}
2... e6 {[%clk 0:02:58.8]} 3. Nc3 {[%clk 0:03:03.6]} 3... Nf6 {[%clk 0:03:00]}
4. Nf3 {[%clk 0:03:04.6]} 4... c5 {[%clk 0:03:00.5]} 5. e3 {[%clk 0:03:05.3]}
5... cxd4 {[%clk 0:03:01.2]} 6. Nxd4 {[%clk 0:03:06.4]} 6... dxc4 {[%clk
0:03:00.4]} 7. Bxc4 {[%clk 0:03:07.1]} 7... Bd7 {[%clk 0:02:55.3]} 8. O-O {[%clk
0:03:07.4]} 8... Be7 {[%clk 0:02:56.5]} 9. e4 {[%clk 0:03:04.5]} 9... Nc6 {[%clk
0:02:57]} 10. Be3 {[%clk 0:03:03.6]} 10... O-O {[%clk 0:02:57.6]} 11. Nxc6
{[%clk 0:03:01.6]} 11... Bxc6 {[%clk 0:02:58.6]} 12. f3 {[%clk 0:03:02.9]} 12...
Qxd1 {[%clk 0:02:53.7]} 13. Rfxd1 {[%clk 0:03:03.7]} 13... Rfd8 {[%clk
0:02:54.1]} 14. Rxd8+ {[%clk 0:03:04.4]} 14... Bxd8 {[%clk 0:02:55.4]} 15. Rd1
{[%clk 0:03:01.2]} 15... a6 {[%clk 0:02:54.2]} 16. e5 {[%clk 0:02:51.5]} 16...
Nd7 {[%clk 0:02:55]} 17. f4 {[%clk 0:02:52.7]} 17... Bb6 {[%clk 0:02:43.7]} 18.
Kf2 {[%clk 0:02:53.5]} 18... Kf8 {[%clk 0:02:41.7]} 19. Be2 {[%clk 0:02:44.8]}
19... Bxe3+ {[%clk 0:02:40.4]} 20. Kxe3 {[%clk 0:02:45.7]} 20... Ke7 {[%clk
0:02:42]} 21. Bf3 {[%clk 0:02:42]} 21... Bxf3 {[%clk 0:02:41.6]} 22. Kxf3 {[%clk
0:02:40.9]} 22... Rd8 {[%clk 0:02:43]} 23. Ke3 {[%clk 0:02:39]} 23... Nb6 {[%clk
0:02:42.8]} 24. Rxd8 {[%clk 0:02:38.7]} 24... Kxd8 {[%clk 0:02:44.7]} 25. Kd4
{[%clk 0:02:39.7]} 25... Kc7 {[%clk 0:02:37]} 26. g4 {[%clk 0:02:34.8]} 26...
Nd7 {[%clk 0:02:36.1]} 27. Ne4 {[%clk 0:02:35.4]} 27... f6 {[%clk 0:02:32.9]}
28. exf6 {[%clk 0:02:31.8]} 28... gxf6 {[%clk 0:02:27.6]} 29. g5 {[%clk
0:02:33.1]} 29... f5 {[%clk 0:01:47]} 30. Nc5 {[%clk 0:02:33.7]} 30... Nf8
{[%clk 0:01:32]} 31. Ke5 {[%clk 0:02:33.1]} 31... Ng6+ {[%clk 0:01:24.5]} 32.
Kxe6 {[%clk 0:02:34.5]} 32... Nxf4+ {[%clk 0:01:26.4]} 33. Kxf5 {[%clk
0:02:35.9]} 33... Nh3 {[%clk 0:01:24.1]} 34. Ne6+ {[%clk 0:02:34.5]} 34... Kd6
{[%clk 0:01:24.1]} 35. Nf8 {[%clk 0:02:35.7]} 35... Ke7 {[%clk 0:01:22.9]} 36.
Nxh7 {[%clk 0:02:36.8]} 36... Kf7 {[%clk 0:01:24.8]} 37. Nf6 {[%clk 0:02:37.2]}
37... Ng1 {[%clk 0:01:25.5]} 38. h4 {[%clk 0:02:31.5]} 1-0

[Event "*** Titled Tuesday Blitz"]
[Site "Chess.com"]
[Date "2018.12.04"]
[Round "2"]
[White "Rikikits"]
[Black "DrRiebert"]
[Result "1-0"]
[WhiteElo "2720"]
[BlackElo "2347"]
[TimeControl "180+2"]
[EndTime "13:19:12 PST"]
[Termination "Rikikits won by resignation"]

1. d3 {[%clk 0:02:22.7]} 1... d5 {[%clk 0:02:58.3]} 2. Nf3 {[%clk 0:02:24.6]}
2... Nf6 {[%clk 0:02:59.4]} 3. g3 {[%clk 0:02:26.4]} 3... g6 {[%clk 0:03:00.4]}
4. Bg2 {[%clk 0:02:28.1]} 4... Bg7 {[%clk 0:03:02.1]} 5. O-O {[%clk 0:02:30]}
5... O-O {[%clk 0:03:03.8]} 6. a4 {[%clk 0:02:30.8]} 6... c5 {[%clk 0:03:00.5]}
7. a5 {[%clk 0:02:31.8]} 7... Nc6 {[%clk 0:03:01.4]} 8. Bd2 {[%clk 0:02:32.2]}
8... e5 {[%clk 0:03:01.7]} 9. Nc3 {[%clk 0:02:32.1]} 9... Qe7 {[%clk 0:02:53.6]}
10. e4 {[%clk 0:01:57.2]} 10... d4 {[%clk 0:02:50.8]} 11. Nd5 {[%clk 0:01:55.3]}
11... Nxd5 {[%clk 0:02:31.9]} 12. exd5 {[%clk 0:01:57.2]} 12... Nb8 {[%clk
0:02:33.2]} 13. c4 {[%clk 0:01:53.4]} 13... Bf5 {[%clk 0:02:21.4]} 14. Re1
{[%clk 0:01:50.8]} 14... Na6 {[%clk 0:01:52.2]} 15. Nxe5 {[%clk 0:01:44.7]}
15... Bxe5 {[%clk 0:01:48]} 16. f4 {[%clk 0:01:44.1]} 16... Bxd3 {[%clk
0:01:43.6]} 17. fxe5 {[%clk 0:01:42.4]} 17... Bxc4 {[%clk 0:01:37.1]} 18. d6
{[%clk 0:01:40.4]} 18... Qd7 {[%clk 0:01:19.7]} 19. Qf3 {[%clk 0:01:35.5]} 19...
Rab8 {[%clk 0:01:14.3]} 20. Bh6 {[%clk 0:01:34.3]} 20... Nb4 {[%clk 0:01:07.3]}
21. Qf6 {[%clk 0:01:33.9]} 1-0

[Event "*** Titled Tuesday Blitz"]
[Site "Chess.com"]
[Date "2018.12.04"]
[Round "2"]
[White "Superfelix"]
[Black "FMJoseHerrera"]
[Result "0-1"]
[WhiteElo "2379"]
[BlackElo "2548"]
[TimeControl "180+2"]
[EndTime "13:19:17 PST"]
[Termination "FMJoseHerrera won by resignation"]

1. e4 {[%clk 0:03:01.9]} 1... c5 {[%clk 0:03:00.5]} 2. Nc3 {[%clk 0:03:01.8]}
2... e6 {[%clk 0:03:00.4]} 3. d4 {[%clk 0:03:02.8]} 3... cxd4 {[%clk 0:03:00.2]}
4. Qxd4 {[%clk 0:03:04.7]} 4... a6 {[%clk 0:03:00.9]} 5. b3 {[%clk 0:03:02.3]}
5... Qc7 {[%clk 0:03:01.6]} 6. Bb2 {[%clk 0:03:03.1]} 6... d6 {[%clk 0:03:00.5]}
7. O-O-O {[%clk 0:03:03.9]} 7... Nd7 {[%clk 0:03:00.6]} 8. f4 {[%clk 0:03:02.8]}
8... Ngf6 {[%clk 0:03:00.9]} 9. Nf3 {[%clk 0:03:03.9]} 9... Be7 {[%clk
0:03:01.2]} 10. g4 {[%clk 0:03:03.9]} 10... e5 {[%clk 0:02:38.2]} 11. fxe5
{[%clk 0:02:58.1]} 11... Nxe5 {[%clk 0:02:40.1]} 12. Nxe5 {[%clk 0:02:57.2]}
12... dxe5 {[%clk 0:02:40.6]} 13. Nd5 {[%clk 0:02:55.9]} 13... Nxd5 {[%clk
0:02:33]} 14. Qxd5 {[%clk 0:02:57.8]} 14... Bxg4 {[%clk 0:01:48.6]} 15. Bxe5
{[%clk 0:02:48.4]} 15... Qc5 {[%clk 0:01:41.7]} 16. Qxb7 {[%clk 0:02:36.4]}
16... Rc8 {[%clk 0:01:30.4]} 17. Bc4 {[%clk 0:02:29.3]} 17... Qxe5 {[%clk
0:01:29.5]} 18. Rhg1 {[%clk 0:01:47.4]} 18... Qa1+ {[%clk 0:01:00.1]} 19. Kd2
{[%clk 0:01:43.3]} 19... Rd8+ {[%clk 0:00:52.2]} 20. Bd5 {[%clk 0:01:43.9]}
20... Qd4+ {[%clk 0:00:46.5]} 21. Kc1 {[%clk 0:01:44.5]} 21... Ba3+ {[%clk
0:00:47.1]} 0-1

[Event "*** Titled Tuesday Blitz"]
[Site "Chess.com"]
[Date "2018.12.04"]
[Round "2"]
[White "BocharovD"]
[Black "AkibaRubi"]
[Result "1-0"]
[WhiteElo "2730"]
[BlackElo "2563"]
[TimeControl "180+2"]
[EndTime "13:19:34 PST"]
[Termination "BocharovD won by resignation"]

1. d4 {[%clk 0:03:01.9]} 1... Nf6 {[%clk 0:03:00.5]} 2. c4 {[%clk 0:03:02]} 2...
e6 {[%clk 0:03:01.8]} 3. Nf3 {[%clk 0:03:03.1]} 3... Bb4+ {[%clk 0:03:03.3]} 4.
Bd2 {[%clk 0:03:02.8]} 4... Qe7 {[%clk 0:03:04.6]} 5. g3 {[%clk 0:03:03.3]} 5...
Nc6 {[%clk 0:03:05.8]} 6. Nc3 {[%clk 0:03:04.3]} 6... Bxc3 {[%clk 0:03:06.5]} 7.
Bxc3 {[%clk 0:03:05.9]} 7... Ne4 {[%clk 0:03:08.4]} 8. Rc1 {[%clk 0:03:06.8]}
8... Nxc3 {[%clk 0:03:09.5]} 9. Rxc3 {[%clk 0:03:07.5]} 9... O-O {[%clk
0:03:11.4]} 10. Bg2 {[%clk 0:03:07.8]} 10... d6 {[%clk 0:03:12.7]} 11. d5 {[%clk
0:03:09]} 11... Nd8 {[%clk 0:03:11.7]} 12. O-O {[%clk 0:03:09]} 12... e5 {[%clk
0:03:04.8]} 13. c5 {[%clk 0:03:09.6]} 13... Bg4 {[%clk 0:02:25.4]} 14. cxd6
{[%clk 0:03:05.6]} 14... cxd6 {[%clk 0:02:27.3]} 15. Qa4 {[%clk 0:03:06.5]}
15... Bxf3 {[%clk 0:02:27.4]} 16. Bxf3 {[%clk 0:03:07.7]} 16... f5 {[%clk
0:02:15.5]} 17. Rfc1 {[%clk 0:03:09]} 17... e4 {[%clk 0:02:16.7]} 18. Bg2 {[%clk
0:03:05.5]} 18... b6 {[%clk 0:02:07.4]} 19. Qd4 {[%clk 0:03:02.7]} 19... Nf7
{[%clk 0:01:58.9]} 20. Rc7 {[%clk 0:03:02.6]} 20... Qe5 {[%clk 0:02:00]} 21.
Qxe5 {[%clk 0:03:02.9]} 21... Nxe5 {[%clk 0:02:01.9]} 22. Bf1 {[%clk 0:02:52.1]}
22... f4 {[%clk 0:01:57.1]} 23. Bh3 {[%clk 0:02:50.7]} 23... fxg3 {[%clk
0:01:44.7]} 24. hxg3 {[%clk 0:02:51.2]} 24... h6 {[%clk 0:01:43.4]} 25. Re7
{[%clk 0:02:45.5]} 25... Rf7 {[%clk 0:01:25.3]} 26. Be6 {[%clk 0:02:39]} 26...
Kf8 {[%clk 0:01:26.4]} 27. Rxf7+ {[%clk 0:02:32.9]} 27... Nxf7 {[%clk
0:01:26.9]} 28. Rc7 {[%clk 0:02:34]} 28... Ne5 {[%clk 0:01:25.3]} 29. Bf5 {[%clk
0:02:31.1]} 29... e3 {[%clk 0:01:05.8]} 30. f4 {[%clk 0:02:32]} 30... Nf7 {[%clk
0:01:06.3]} 31. Kg2 {[%clk 0:02:31.6]} 31... g5 {[%clk 0:00:56.7]} 32. Be6
{[%clk 0:02:29]} 32... Nd8 {[%clk 0:00:51.8]} 33. f5 {[%clk 0:02:29.9]} 33... g4
{[%clk 0:00:49]} 34. f6 {[%clk 0:02:30.5]} 1-0

[Event "*** Titled Tuesday Blitz"]
[Site "Chess.com"]
[Date "2018.12.04"]
[Round "2"]
[White "gemarin"]
[Black "realcontender"]
[Result "0-1"]
[WhiteElo "2018"]
[BlackElo "2115"]
[TimeControl "180+2"]
[EndTime "13:19:49 PST"]
[Termination "realcontender won by resignation"]

1. d4 {[%clk 0:03:01.9]} 1... d5 {[%clk 0:03:00.4]} 2. c4 {[%clk 0:03:01.6]}
2... c6 {[%clk 0:03:01.8]} 3. e3 {[%clk 0:03:00.8]} 3... Nf6 {[%clk 0:03:02.6]}
4. Nc3 {[%clk 0:03:01.3]} 4... e6 {[%clk 0:03:02.9]} 5. Nf3 {[%clk 0:02:59.6]}
5... Nbd7 {[%clk 0:03:03.1]} 6. Qc2 {[%clk 0:02:54.2]} 6... Bd6 {[%clk
0:03:01.6]} 7. Be2 {[%clk 0:02:54.4]} 7... dxc4 {[%clk 0:02:26.1]} 8. Bxc4
{[%clk 0:02:54.6]} 8... O-O {[%clk 0:02:26.9]} 9. O-O {[%clk 0:02:54.8]} 9... e5
{[%clk 0:02:19.1]} 10. Rd1 {[%clk 0:02:50.4]} 10... exd4 {[%clk 0:02:10.2]} 11.
Rxd4 {[%clk 0:02:43.5]} 11... Qe7 {[%clk 0:02:06.1]} 12. b3 {[%clk 0:02:32.4]}
12... Ne5 {[%clk 0:02:03.6]} 13. Be2 {[%clk 0:02:13]} 13... g6 {[%clk
0:01:39.5]} 14. Bb2 {[%clk 0:02:10.4]} 14... Bf5 {[%clk 0:01:37]} 15. Qd2 {[%clk
0:02:06.3]} 15... Rad8 {[%clk 0:01:34.7]} 16. Rd1 {[%clk 0:02:02.4]} 16... Bc7
{[%clk 0:01:33.6]} 17. Qc1 {[%clk 0:01:55.6]} 17... Rxd4 {[%clk 0:01:28.7]} 18.
Rxd4 {[%clk 0:01:54.8]} 18... Rd8 {[%clk 0:01:21.7]} 19. Rxd8+ {[%clk
0:01:49.3]} 19... Qxd8 {[%clk 0:01:21.2]} 20. Nd4 {[%clk 0:01:45.5]} 20... Nd3
{[%clk 0:01:15.9]} 21. Bxd3 {[%clk 0:01:40.1]} 21... Bxd3 {[%clk 0:01:16.6]} 22.
Qd1 {[%clk 0:01:34.6]} 22... Ba6 {[%clk 0:01:12.2]} 23. Nde2 {[%clk 0:01:05]}
23... Qxd1+ {[%clk 0:01:10.9]} 24. Nxd1 {[%clk 0:01:06.5]} 24... Bxe2 {[%clk
0:01:12.4]} 25. Bxf6 {[%clk 0:01:06.8]} 25... Bxd1 {[%clk 0:01:13.7]} 0-1

[Event "*** Titled Tuesday Blitz"]
[Site "Chess.com"]
[Date "2018.12.04"]
[Round "2"]
[White "maciek_92"]
[Black "catalin009"]
[Result "0-1"]
[WhiteElo "2618"]
[BlackElo "2353"]
[TimeControl "180+2"]
[EndTime "13:19:49 PST"]
[Termination "catalin009 won by resignation"]

1. e4 {[%clk 0:02:53]} 1... c5 {[%clk 0:02:58.5]} 2. Nf3 {[%clk 0:02:54.2]} 2...
Nc6 {[%clk 0:02:59.9]} 3. d4 {[%clk 0:02:51.4]} 3... cxd4 {[%clk 0:03:01.8]} 4.
Nxd4 {[%clk 0:02:53.1]} 4... g6 {[%clk 0:03:02.5]} 5. c4 {[%clk 0:02:52]} 5...
Bg7 {[%clk 0:02:56.6]} 6. Nc2 {[%clk 0:02:45.9]} 6... Nf6 {[%clk 0:02:57.4]} 7.
Nc3 {[%clk 0:02:45.7]} 7... O-O {[%clk 0:02:58.3]} 8. Be2 {[%clk 0:02:47.2]}
8... a6 {[%clk 0:02:57.3]} 9. O-O {[%clk 0:02:45.9]} 9... Rb8 {[%clk 0:02:54.4]}
10. f3 {[%clk 0:02:44.9]} 10... b5 {[%clk 0:02:50.3]} 11. b3 {[%clk 0:02:40.9]}
11... bxc4 {[%clk 0:02:35.7]} 12. Bxc4 {[%clk 0:02:40.3]} 12... d6 {[%clk
0:02:36]} 13. Be3 {[%clk 0:02:31.9]} 13... Ng4 {[%clk 0:02:18.5]} 14. Qd2 {[%clk
0:02:30.5]} 14... Nxe3 {[%clk 0:02:17.5]} 15. Nxe3 {[%clk 0:02:32.4]} 15... Qb6
{[%clk 0:02:16.3]} 16. Kh1 {[%clk 0:02:32.8]} 16... Qd4 {[%clk 0:02:14.8]} 17.
Qxd4 {[%clk 0:02:33.3]} 17... Bxd4 {[%clk 0:02:14.2]} 18. Ned1 {[%clk
0:02:31.7]} 18... Bd7 {[%clk 0:02:08.6]} 19. Rc1 {[%clk 0:02:31.1]} 19... a5
{[%clk 0:02:07.3]} 20. f4 {[%clk 0:02:19.5]} 20... e6 {[%clk 0:02:03.2]} 21. Nb5
{[%clk 0:02:20]} 21... Bc5 {[%clk 0:02:02.8]} 22. Nb2 {[%clk 0:02:17.6]} 22...
Nb4 {[%clk 0:02:00.2]} 23. Nc3 {[%clk 0:02:15.8]} 23... Bd4 {[%clk 0:01:59.2]}
24. a3 {[%clk 0:02:10.9]} 24... Na2 {[%clk 0:01:55.7]} 25. Nxa2 {[%clk
0:02:00.8]} 25... Bxb2 {[%clk 0:01:55.5]} 26. Rcd1 {[%clk 0:02:00]} 26... Bxa3
{[%clk 0:01:56.5]} 27. Nc3 {[%clk 0:02:00.8]} 27... Rfc8 {[%clk 0:01:53.1]} 28.
f5 {[%clk 0:01:56.6]} 28... a4 {[%clk 0:01:53.2]} 29. fxe6 {[%clk 0:01:56.8]}
29... fxe6 {[%clk 0:01:53.9]} 30. Nxa4 {[%clk 0:01:46.6]} 30... Rxc4 {[%clk
0:01:36.4]} 31. bxc4 {[%clk 0:01:47.4]} 31... Bxa4 {[%clk 0:01:36.9]} 32. Ra1
{[%clk 0:01:48.3]} 32... Rb3 {[%clk 0:01:36.7]} 33. Rf3 {[%clk 0:01:38.7]} 33...
Bc5 {[%clk 0:01:36.3]} 34. Rf6 {[%clk 0:01:34.7]} 34... Bd4 {[%clk 0:01:21.6]}
0-1

[Event "*** Titled Tuesday Blitz"]
[Site "Chess.com"]
[Date "2018.12.04"]
[Round "2"]
[White "sandager"]
[Black "Raffael89"]
[Result "0-1"]
[WhiteElo "1977"]
[BlackElo "2129"]
[TimeControl "180+2"]
[EndTime "13:19:56 PST"]
[Termination "Raffael89 won on time"]

1. e4 {[%clk 0:03:00.6]} 1... d5 {[%clk 0:03:01.2]} 2. exd5 {[%clk 0:02:59.7]}
2... Qxd5 {[%clk 0:03:03.1]} 3. Nc3 {[%clk 0:03:00.4]} 3... Qd8 {[%clk
0:03:04.1]} 4. d4 {[%clk 0:03:01.5]} 4... Nf6 {[%clk 0:03:05.8]} 5. Bc4 {[%clk
0:03:01.2]} 5... a6 {[%clk 0:03:06.1]} 6. Nge2 {[%clk 0:03:01.6]} 6... b5 {[%clk
0:03:05.5]} 7. Bd3 {[%clk 0:02:55.3]} 7... Bb7 {[%clk 0:03:06.4]} 8. O-O {[%clk
0:02:55]} 8... e6 {[%clk 0:03:07.8]} 9. Be3 {[%clk 0:02:39.8]} 9... Bd6 {[%clk
0:03:04.7]} 10. Ng3 {[%clk 0:02:39.2]} 10... h5 {[%clk 0:03:02.9]} 11. Bg5
{[%clk 0:02:34.6]} 11... h4 {[%clk 0:02:55.4]} 12. Nge4 {[%clk 0:02:34.7]} 12...
Be7 {[%clk 0:02:55.2]} 13. Nc5 {[%clk 0:01:13.8]} 13... Bc6 {[%clk 0:02:40.8]}
14. Ne2 {[%clk 0:01:06]} 14... h3 {[%clk 0:02:37.6]} 15. Bxf6 {[%clk 0:00:12.3]}
15... Bxf6 {[%clk 0:02:39.5]} 16. Be4 {[%clk 0:00:12.1]} 16... Bxe4 {[%clk
0:02:36.2]} 17. Nxe4 {[%clk 0:00:12]} 17... hxg2 {[%clk 0:02:34.7]} 18. Re1
{[%clk 0:00:12.7]} 18... Nd7 {[%clk 0:02:28.9]} 19. c3 {[%clk 0:00:13.2]} 19...
c6 {[%clk 0:02:23]} 20. Nd6+ {[%clk 0:00:11.6]} 20... Kf8 {[%clk 0:02:21.1]} 21.
Nf4 {[%clk 0:00:11.7]} 21... Kg8 {[%clk 0:02:06.6]} 22. Nxf7 {[%clk 0:00:10.3]}
22... Kxf7 {[%clk 0:01:59.3]} 23. Nxe6 {[%clk 0:00:11.6]} 23... Qb8 {[%clk
0:01:59.6]} 0-1

[Event "*** Titled Tuesday Blitz"]
[Site "Chess.com"]
[Date "2018.12.04"]
[Round "2"]
[White "anesar92"]
[Black "BIG_Pirate"]
[Result "1-0"]
[WhiteElo "2676"]
[BlackElo "2359"]
[TimeControl "180+2"]
[EndTime "13:19:58 PST"]
[Termination "anesar92 won by resignation"]

1. e4 {[%clk 0:03:01.9]} 1... d5 {[%clk 0:03:00.9]} 2. exd5 {[%clk 0:03:02.6]}
2... Qxd5 {[%clk 0:03:02.8]} 3. Nc3 {[%clk 0:03:04]} 3... Qa5 {[%clk 0:03:02.4]}
4. Bc4 {[%clk 0:03:05]} 4... Nf6 {[%clk 0:03:01.8]} 5. d3 {[%clk 0:03:06]} 5...
c6 {[%clk 0:03:00.7]} 6. Bd2 {[%clk 0:03:06.8]} 6... Qc7 {[%clk 0:02:59.9]} 7.
Qe2 {[%clk 0:03:08.4]} 7... e6 {[%clk 0:02:42.6]} 8. O-O-O {[%clk 0:03:08.1]}
8... Be7 {[%clk 0:02:40.5]} 9. Nf3 {[%clk 0:03:05.5]} 9... Nbd7 {[%clk
0:02:37.1]} 10. Rde1 {[%clk 0:02:55.8]} 10... b5 {[%clk 0:02:33.6]} 11. Bb3
{[%clk 0:02:40.9]} 11... Nc5 {[%clk 0:02:30.3]} 12. g4 {[%clk 0:02:37.8]} 12...
a5 {[%clk 0:02:28.1]} 13. g5 {[%clk 0:02:36.1]} 13... Nfd7 {[%clk 0:02:25.9]}
14. d4 {[%clk 0:02:25.2]} 14... Nxb3+ {[%clk 0:02:26.3]} 15. axb3 {[%clk
0:02:22]} 15... Nb6 {[%clk 0:02:07.4]} 16. Ne5 {[%clk 0:02:20.4]} 16... a4
{[%clk 0:01:52.7]} 17. Qf3 {[%clk 0:02:14.2]} 17... O-O {[%clk 0:01:45.8]} 18.
Qxc6 {[%clk 0:02:13.8]} 18... Qxc6 {[%clk 0:00:34.8]} 19. Nxc6 {[%clk
0:02:15.3]} 19... Re8 {[%clk 0:00:19.2]} 20. d5 {[%clk 0:02:03.5]} 20... b4
{[%clk 0:00:16.6]} 21. Nxa4 {[%clk 0:02:00.7]} 21... Nxa4 {[%clk 0:00:17.6]} 22.
bxa4 {[%clk 0:02:02.6]} 22... Rxa4 {[%clk 0:00:17.2]} 23. b3 {[%clk 0:01:59.3]}
23... Ra5 {[%clk 0:00:08.5]} 24. Nxa5 {[%clk 0:01:59.4]} 1-0

[Event "*** Titled Tuesday Blitz"]
[Site "Chess.com"]
[Date "2018.12.04"]
[Round "2"]
[White "GMMatamoros"]
[Black "M1711"]
[Result "1-0"]
[WhiteElo "2544"]
[BlackElo "2475"]
[TimeControl "180+2"]
[EndTime "13:20:07 PST"]
[Termination "GMMatamoros won by resignation"]

1. Nf3 {[%clk 0:03:01.9]} 1... Nf6 {[%clk 0:03:00.5]} 2. c4 {[%clk 0:02:59]}
2... e6 {[%clk 0:03:01.2]} 3. g3 {[%clk 0:02:59.5]} 3... d5 {[%clk 0:03:01.9]}
4. Bg2 {[%clk 0:03:00.1]} 4... Be7 {[%clk 0:03:02.7]} 5. O-O {[%clk 0:03:00.7]}
5... O-O {[%clk 0:03:03.4]} 6. b3 {[%clk 0:03:00.9]} 6... b6 {[%clk 0:03:03.8]}
7. Bb2 {[%clk 0:02:58.2]} 7... Bb7 {[%clk 0:03:04.6]} 8. cxd5 {[%clk 0:02:59.2]}
8... exd5 {[%clk 0:03:02]} 9. d4 {[%clk 0:02:59.2]} 9... Nbd7 {[%clk 0:03:01.4]}
10. Nc3 {[%clk 0:02:59.3]} 10... c5 {[%clk 0:02:50.4]} 11. Rc1 {[%clk
0:02:54.9]} 11... Rc8 {[%clk 0:02:49.5]} 12. e3 {[%clk 0:02:54.8]} 12... Qc7
{[%clk 0:02:46.6]} 13. Re1 {[%clk 0:02:54]} 13... Rfd8 {[%clk 0:02:46.2]} 14.
Ne2 {[%clk 0:02:49.2]} 14... Qb8 {[%clk 0:02:43.2]} 15. Nf4 {[%clk 0:02:48.7]}
15... Nf8 {[%clk 0:02:41.5]} 16. Ne5 {[%clk 0:02:41.2]} 16... Bd6 {[%clk
0:02:36.6]} 17. h4 {[%clk 0:02:25.1]} 17... Ne4 {[%clk 0:02:17.3]} 18. Qf3
{[%clk 0:02:12.1]} 18... Qc7 {[%clk 0:01:25]} 19. h5 {[%clk 0:02:05.2]} 19... h6
{[%clk 0:01:23.3]} 20. Red1 {[%clk 0:02:01.1]} 20... Qe7 {[%clk 0:01:12.4]} 21.
Qe2 {[%clk 0:01:43.2]} 21... cxd4 {[%clk 0:01:08.2]} 22. exd4 {[%clk 0:01:41.5]}
22... Nf6 {[%clk 0:00:59.2]} 23. Bh3 {[%clk 0:01:28.1]} 23... Rxc1 {[%clk
0:00:59.4]} 24. Rxc1 {[%clk 0:01:28.4]} 24... N8d7 {[%clk 0:00:46.1]} 25. Nxd7
{[%clk 0:01:18.5]} 25... Qxe2 {[%clk 0:00:40.9]} 26. Nxf6+ {[%clk 0:01:18.5]}
26... gxf6 {[%clk 0:00:41]} 27. Nxe2 {[%clk 0:01:19.5]} 1-0

[Event "*** Titled Tuesday Blitz"]
[Site "Chess.com"]
[Date "2018.12.04"]
[Round "2"]
[White "51616516516"]
[Black "1e41-0"]
[Result "0-1"]
[WhiteElo "2246"]
[BlackElo "2498"]
[TimeControl "180+2"]
[EndTime "13:20:14 PST"]
[Termination "1e41-0 won on time"]

1. d4 {[%clk 0:03:01.9]} 1... Nf6 {[%clk 0:02:59.7]} 2. c4 {[%clk 0:03:02.9]}
2... c5 {[%clk 0:03:00.6]} 3. Nf3 {[%clk 0:03:03.4]} 3... cxd4 {[%clk
0:03:01.4]} 4. Nxd4 {[%clk 0:03:05.3]} 4... b6 {[%clk 0:03:02.7]} 5. Nc3 {[%clk
0:02:56]} 5... Bb7 {[%clk 0:03:03.6]} 6. Bg5 {[%clk 0:02:31.7]} 6... a6 {[%clk
0:02:57.2]} 7. Bxf6 {[%clk 0:02:19.3]} 7... gxf6 {[%clk 0:02:59.1]} 8. e4 {[%clk
0:02:19.1]} 8... e6 {[%clk 0:02:59.6]} 9. Be2 {[%clk 0:02:16.8]} 9... Qc7 {[%clk
0:02:59.1]} 10. O-O {[%clk 0:02:14.4]} 10... Nc6 {[%clk 0:02:51.4]} 11. Rc1
{[%clk 0:01:49.4]} 11... Bc5 {[%clk 0:02:22]} 12. Nb3 {[%clk 0:01:39]} 12... Bd6
{[%clk 0:02:22.8]} 13. h3 {[%clk 0:01:22.7]} 13... Ne5 {[%clk 0:02:11.2]} 14.
Kh1 {[%clk 0:00:16.5]} 14... Rg8 {[%clk 0:02:08]} 15. f4 {[%clk 0:00:11.6]}
15... Ng6 {[%clk 0:02:08.2]} 16. f5 {[%clk 0:00:11]} 16... Nf4 {[%clk
0:02:07.5]} 17. Bf3 {[%clk 0:00:07.1]} 17... Rg3 {[%clk 0:01:44.9]} 18. Qe1
{[%clk 0:00:05.4]} 18... Nxh3 {[%clk 0:01:41.5]} 19. gxh3 {[%clk 0:00:03.4]}
19... Rxh3+ {[%clk 0:01:43.4]} 20. Kg2 {[%clk 0:00:03.7]} 20... Rh2+ {[%clk
0:01:36.6]} 21. Kg1 {[%clk 0:00:04.2]} 21... O-O-O {[%clk 0:01:37.5]} 22. c5
{[%clk 0:00:04.1]} 22... Rg8+ {[%clk 0:01:37.8]} 0-1

[Event "*** Titled Tuesday Blitz"]
[Site "Chess.com"]
[Date "2018.12.04"]
[Round "2"]
[White "alpasya2009"]
[Black "Manukyan_Artak"]
[Result "1-0"]
[WhiteElo "2571"]
[BlackElo "2378"]
[TimeControl "180+2"]
[EndTime "13:20:26 PST"]
[Termination "alpasya2009 won by resignation"]

1. d4 {[%clk 0:03:01.9]} 1... d5 {[%clk 0:02:59.7]} 2. Bf4 {[%clk 0:03:03.2]}
2... c5 {[%clk 0:03:00.5]} 3. e3 {[%clk 0:03:04.4]} 3... Qb6 {[%clk 0:03:01.2]}
4. Nc3 {[%clk 0:02:51.7]} 4... e6 {[%clk 0:02:56.5]} 5. Na4 {[%clk 0:02:44.8]}
5... Qa5+ {[%clk 0:02:49.7]} 6. c3 {[%clk 0:02:46]} 6... b6 {[%clk 0:02:39]} 7.
b3 {[%clk 0:02:15.2]} 7... Bd7 {[%clk 0:02:34.4]} 8. Rc1 {[%clk 0:02:13]} 8...
Nf6 {[%clk 0:02:28.5]} 9. Bd3 {[%clk 0:02:11.5]} 9... cxd4 {[%clk 0:02:12.2]}
10. exd4 {[%clk 0:02:11.9]} 10... Ba3 {[%clk 0:02:06]} 11. Rc2 {[%clk
0:02:12.2]} 11... Bxa4 {[%clk 0:02:06.5]} 12. bxa4 {[%clk 0:02:12.8]} 12... Qxa4
{[%clk 0:02:01.2]} 13. Be5 {[%clk 0:01:55]} 13... Nbd7 {[%clk 0:02:00.5]} 14.
Nf3 {[%clk 0:01:52.2]} 14... O-O {[%clk 0:02:00.4]} 15. O-O {[%clk 0:01:51]}
15... Rac8 {[%clk 0:01:54.8]} 16. Qe2 {[%clk 0:01:43.8]} 16... Rfd8 {[%clk
0:01:37.9]} 17. Nd2 {[%clk 0:01:10.2]} 17... Nxe5 {[%clk 0:01:33.2]} 18. dxe5
{[%clk 0:01:05.8]} 18... Nd7 {[%clk 0:01:31.3]} 19. f4 {[%clk 0:00:46.9]} 19...
g6 {[%clk 0:01:30.4]} 20. Bb5 {[%clk 0:00:43.4]} 20... Qa5 {[%clk 0:01:27.7]}
21. Nb3 {[%clk 0:00:44.9]} 21... Qxc3 {[%clk 0:01:13]} 22. Rxc3 {[%clk
0:00:45.9]} 22... Rxc3 {[%clk 0:01:14.9]} 23. Bxd7 {[%clk 0:00:35.2]} 23... Rxd7
{[%clk 0:01:15.6]} 24. Qa6 {[%clk 0:00:34.6]} 24... Rdc7 {[%clk 0:01:15]} 25.
Qxa3 {[%clk 0:00:35.2]} 25... d4 {[%clk 0:01:15.4]} 26. Qd6 {[%clk 0:00:32.1]}
26... d3 {[%clk 0:01:15]} 27. Rd1 {[%clk 0:00:32.6]} 1-0